bitfinex-derivatives/quotes_SOLF0:USTF0_20250823
["timestamp","ask_amount","ask_price","bid_price","bid_amount"]
[1755957610214,2.82,201.56,201.51,4.63357444]
[1755957610420,2.82,201.56,201.52,4.63357444]
[1755957610621,7.7833,201.55,201.53,4.63357444]
[1755957610821,7.7833,201.55,201.54,4.63357444]
[1755957611017,2.82,201.55,201.54,4.63357444]
[1755957611320,104.82,201.59,201.55,2.76]
[1755957611621,102.0,201.59,201.57,2.76]
[1755957611820,102.0,201.59,201.58,4.63357444]
[1755957612524,122.82,201.62,201.58,4.63357444]
[1755957612821,122.82,201.62,201.59,7.39357444]
[1755957613023,122.82,201.62,201.6,4.63357444]
[1755957613219,122.82,201.62,201.61,7.38720915]
[1755957613423,109.7808,201.65,201.61,7.38720915]
[1755957613624,106.9608,201.65,201.62,4.62720915]
[1755957613824,2.82,201.64,201.63,4.62720915]
[1755957615326,4.9613,201.63,201.58,2.76]
[1755957615627,2.82,201.63,201.6,2.76]
[1755957615825,2.82,201.63,201.61,4.62738837]
[1755957616026,2.82,201.63,201.6,2.76]
[1755957616027,2.82,201.63,201.62,4.62738837]
[1755957618225,2.82,201.63,201.6,2.76]
[1755957618430,4.9611,201.64,201.62,2.76]
[1755957618625,4.9611,201.64,201.63,4.62730164]
[1755957619223,4.9611,201.64,201.63,4.62695287]
[1755957619623,7.7811,201.64,201.63,4.62695287]
[1755957624427,7.7811,201.64,201.42,24.8315]
[1755957624428,4.9623,201.59,201.56,2.76]
[1755957624836,4.9623,201.59,201.57,2.76]
[1755957626328,125.58,201.61,201.57,2.76]
[1755957626329,130.5418,201.61,201.57,2.76]
[1755957626729,7.7818,201.61,201.58,2.76]
[1755957626932,130.5218,201.61,201.55,2.76]
[1755957629634,130.5218,201.61,201.56,4.02523072]
[1755957629835,130.5218,201.61,201.58,2.76]
[1755957632939,127.7018,201.61,201.58,2.76]
[1755957633140,2.82,201.6,201.58,2.76]
[1755957633543,2.82,201.6,201.55,2.69]
[1755957633742,2.82,201.6,201.57,2.69]
[1755957636343,2.82,201.6,201.58,4.54457253]
[1755957636344,2.62,201.59,201.58,4.54457253]
[1755957637044,2.62,201.59,201.54,2.69]
[1755957637248,4.9621,201.6,201.55,8.57171746]
[1755957637441,7.5821,201.6,201.57,2.69]
[1755957637645,7.5821,201.6,201.58,4.54457253]
[1755957637847,7.5821,201.6,201.57,2.69]
[1755957638149,7.5821,201.6,201.58,4.54509328]
[1755957638347,7.5821,201.6,201.59,4.54509328]
[1755957642848,104.62,201.63,201.6,2.69]
[1755957643043,122.68,201.62,201.61,4.54729814]
[1755957643449,125.3,201.62,201.61,4.54729814]
[1755957646451,125.3,201.62,201.57,2.69]
[1755957646755,125.3,201.62,201.58,11.27593242]
[1755957646955,130.2617,201.62,201.59,4.55006243]
[1755957647251,130.2617,201.62,201.6,4.55006243]
[1755957647450,130.2617,201.62,201.61,4.55006243]
[1755957651157,7.5817,201.62,201.61,4.55006243]
[1755957651354,130.2017,201.62,201.61,4.55006243]
[1755957652755,130.2017,201.62,201.61,4.62951712]
[1755957653260,125.24,201.62,201.61,4.62951712]
[1755957655760,125.24,201.62,201.55,2.69]
[1755957655761,4.962,201.6,201.55,2.69]
[1755957656061,125.22,201.59,201.56,11.36557639]
[1755957656364,125.22,201.59,201.57,8.67557639]
[1755957656560,125.22,201.59,201.58,4.63227236]
[1755957658160,122.6,201.59,201.58,7.32227236]
[1755957660258,102.0,201.63,201.58,4.63227236]
[1755957660460,122.58,201.62,201.59,7.32227236]
[1755957660763,125.2,201.62,201.6,4.63227236]
[1755957660963,125.2,201.62,201.61,4.63227236]
[1755957664562,125.2,201.62,201.61,4.634884]
[1755957664965,4.9613,201.63,201.57,4.9626]
[1755957665170,2.77,201.69,201.59,2.76]
[1755957665365,2.77,201.67,201.6,8.68000597]
[1755957665564,122.56,201.66,201.61,4.634884]
[1755957665869,2.77,201.64,201.62,4.634884]
[1755957666170,2.77,201.63,201.59,2.76]
[1755957666366,2.77,201.63,201.6,8.68234705]
[1755957666671,2.77,201.63,201.61,4.63955287]
[1755957666869,2.77,201.63,201.62,4.63955287]
[1755957667771,4.9616,201.62,201.56,4.9629]
[1755957667969,127.5016,201.62,201.57,8.68320249]
[1755957668265,2.77,201.6,201.58,8.68320249]
[1755957668470,2.77,201.6,201.59,4.64004385]
[1755957669173,125.31,201.62,201.59,4.64004385]
[1755957669363,125.31,201.62,201.6,4.64004385]
[1755957669567,125.31,201.62,201.61,4.64004385]
[1755957674070,125.31,201.62,201.61,4.64133643]
[1755957674474,125.31,201.62,201.61,4.64139356]
[1755957683481,125.31,201.62,201.57,4.9626]
[1755957683783,125.31,201.62,201.6,2.76]
[1755957683784,122.54,201.62,201.6,2.76]
[1755957683980,122.54,201.62,201.61,4.64141173]
[1755957684182,125.31,201.62,201.61,4.64141173]
[1755957688887,4.9632,201.56,201.53,2.76]
[1755957689089,2.77,201.55,201.54,4.04440511]
[1755957689284,2.77,201.64,201.54,4.04440511]
[1755957689588,2.77,201.62,201.55,4.04440511]
[1755957689779,2.77,201.6,201.53,2.76]
[1755957689984,2.77,201.58,201.54,4.04371936]
[1755957690189,7.7326,201.58,201.55,6.80371936]
[1755957690389,7.7326,201.58,201.55,2.76]
[1755957690687,2.77,201.58,201.51,2.76]
[1755957690885,2.77,201.56,201.52,4.04345462]
[1755957691084,2.77,201.55,201.53,4.04345462]
[1755957691283,2.77,201.55,201.54,4.04345462]
[1755957692387,2.77,201.55,201.54,4.04171878]
[1755957692695,2.77,201.55,201.49,2.76]
[1755957692988,122.44,201.54,201.46,2.76]
[1755957693192,2.77,201.52,201.47,4.0422981]
[1755957693391,2.77,201.52,201.42,6.94294814]
[1755957693392,2.82,201.5,201.48,4.0422981]
[1755957693590,102.0,201.53,201.49,4.03883382]
[1755957693890,122.44,201.52,201.45,2.65]
[1755957694091,122.44,201.52,201.46,4.03888398]
[1755957694290,122.44,201.52,201.43,4.18294814]
[1755957694291,125.26,201.52,201.48,2.65]
[1755957694491,125.26,201.52,201.49,4.03888398]
[1755957694786,125.26,201.52,201.48,2.65]
[1755957694992,125.26,201.52,201.49,4.037028]
[1755957695286,125.26,201.52,201.48,2.65]
[1755957695591,122.44,201.52,201.48,2.65]
[1755957695798,125.26,201.52,201.48,2.65]
[1755957695982,122.44,201.52,201.47,2.65]
[1755957696187,102.0,201.53,201.49,2.65]
[1755957696388,102.0,201.53,201.5,4.03528603]
[1755957696586,102.0,201.53,201.52,2.65]
[1755957698094,233.67638582,201.55,201.48,4.9648]
[1755957698300,233.67638582,201.55,201.49,6.68375939]
[1755957698495,236.49638582,201.55,201.51,2.65]
[1755957699000,236.49638582,201.55,201.52,2.65]
[1755957700501,2.82,201.54,201.52,2.65]
[1755957700902,2.82,201.54,201.53,4.59744787]
[1755957701900,233.67638582,201.55,201.53,4.59744787]
[1755957702095,236.49638582,201.55,201.54,4.59744787]
[1755957702297,236.49638582,201.55,201.49,2.65]
[1755957702496,233.67638582,201.55,201.51,2.65]
[1755957702702,2.82,201.58,201.54,2.65]
[1755957702903,106.9619,201.61,201.55,4.59672162]
[1755957702904,122.44,201.6,201.55,4.59672162]
[1755957703102,122.44,201.6,201.56,7.24672162]
[1755957703302,2.82,201.59,201.57,4.59672162]
[1755957703607,2.82,201.59,201.56,2.65]
[1755957703807,2.82,201.59,201.57,4.59591565]
[1755957704107,2.82,201.59,201.49,8.04338533]
[1755957704108,2.82,201.59,201.5,2.65]
[1755957704405,2.82,201.59,201.52,2.65]
[1755957704606,7.7823,201.59,201.53,8.627096]
[1755957704911,125.26,201.6,201.55,2.65]
[1755957705208,122.42,201.62,201.56,7.24620836]
[1755957705407,125.24,201.63,201.57,4.59620836]
[1755957705596,2.82,201.63,201.59,2.65]
[1755957705904,2.82,201.63,201.6,7.24620836]
[1755957706206,2.82,201.63,201.61,4.59620836]
[1755957706499,2.82,201.63,201.6,2.65]
[1755957706705,2.82,201.63,201.61,4.59556167]
[1755957706901,122.42,201.64,201.53,8.04338533]
[1755957707095,122.42,201.64,201.55,2.65]
[1755957707296,4.9609,201.65,201.57,2.65]
[1755957707500,4.9609,201.65,201.59,2.65]
[1755957707702,2.82,201.66,201.6,4.59549016]
[1755957707901,2.82,201.66,201.62,2.65]
[1755957708100,2.82,201.66,201.63,4.59549016]
[1755957708303,2.82,201.65,201.62,2.65]
[1755957708503,2.82,201.65,201.63,4.59448821]
[1755957708711,2.82,201.65,201.62,2.65]
[1755957708912,2.82,201.65,201.63,4.59448821]
[1755957709112,2.82,201.65,201.62,2.65]
[1755957709311,2.82,201.65,201.63,4.59413868]
[1755957709507,2.82,201.65,201.62,2.65]
[1755957709711,2.82,201.64,201.63,4.59413868]
[1755957711010,125.24,201.67,201.63,4.59413868]
[1755957711202,125.24,201.67,201.64,7.24413868]
[1755957711406,125.24,201.67,201.65,4.59413868]
[1755957711608,125.24,201.67,201.64,2.65]
[1755957712005,125.24,201.67,201.65,4.59358236]
[1755957712209,2.82,201.67,201.64,2.65]
[1755957712409,2.82,201.67,201.65,4.59274593]
[1755957712613,2.82,201.67,201.64,2.65]
[1755957712816,122.4,201.7,201.65,4.59274593]
[1755957713008,2.82,201.66,201.6,4.9618]
[1755957713311,2.82,201.69,201.61,4.59281737]
[1755957713506,2.82,201.69,201.58,2.65]
[1755957713507,2.82,201.69,201.62,4.59281737]
[1755957713711,2.82,201.69,201.63,4.59281737]
[1755957714013,2.82,201.69,201.6,2.65]
[1755957714209,4.9609,201.65,201.61,4.59215535]
[1755957714413,2.82,201.68,201.62,4.59215535]
[1755957714615,2.82,201.68,201.58,2.65]
[1755957714915,102.0,201.67,201.6,2.65]
[1755957715115,102.0,201.67,201.61,4.59149276]
[1755957715412,104.82,201.67,201.63,2.65]
[1755957716208,104.82,201.67,201.64,2.65]
[1755957716611,104.82,201.67,201.61,2.65]
[1755957716812,2.82,201.66,201.62,7.24019801]
[1755957717114,2.82,201.66,201.63,7.24019801]
[1755957717313,2.82,201.66,201.63,2.65]
[1755957720717,2.82,201.65,201.58,2.65]
[1755957721109,2.82,201.65,201.6,2.65]
[1755957721310,2.82,201.65,201.62,2.65]
[1755957722412,102.0,201.67,201.58,8.04338533]
[1755957722614,24.7888,201.78,201.6,2.65]
[1755957722615,2.82,201.72,201.6,2.65]
[1755957722908,7.7792,201.72,201.64,4.9608]
[1755957723116,122.32,201.74,201.66,2.65]
[1755957723307,122.32,201.74,201.68,2.73]
[1755957723812,2.82,201.75,201.68,2.73]
[1755957724721,4.9586,201.74,201.68,2.73]
[1755957725417,2.82,201.75,201.68,2.73]
[1755957725622,2.82,201.75,201.71,2.73]
[1755957725919,7.7581,201.76,201.72,2.73]
[1755957726114,2.8,201.75,201.72,2.73]
[1755957726317,7.7575,201.79,201.73,2.73]
[1755957726718,2.8,201.79,201.73,2.73]
[1755957728720,7.7575,201.79,201.73,2.73]
[1755957728911,122.3,201.78,201.67,2.73]
[1755957729116,2.8,201.77,201.67,2.73]
[1755957730217,4.9597,201.7,201.62,2.73]
[1755957730416,7.7597,201.7,201.63,4.56908235]
[1755957730720,7.7597,201.7,201.62,2.73]
[1755957730721,2.8,201.7,201.62,2.73]
[1755957730921,2.8,201.7,201.63,4.56927891]
[1755957731117,2.8,201.7,201.62,2.73]
[1755957731419,2.8,201.7,201.63,4.56873176]
[1755957731720,2.8,201.7,201.62,7.6912]
[1755957732021,130.0388,201.73,201.64,7.6908]
[1755957732320,130.0388,201.73,201.61,8.04338533]
[1755957732321,2.8,201.73,201.66,2.73]
[1755957732917,125.08,201.77,201.66,2.73]
[1755957733514,125.08,201.77,201.66,7.6903]
[1755957733515,4.9584,201.75,201.66,7.6903]
[1755957733720,2.8,201.75,201.66,7.6903]
[1755957733917,2.8,201.75,201.66,2.73]
[1755957735118,122.28,201.77,201.68,2.73]
[1755957735813,127.2379,201.77,201.69,4.9596]
[1755957736017,4.9579,201.77,201.7,2.73]
[1755957736823,2.8,201.78,201.7,2.73]
[1755957737125,104.8,201.82,201.7,2.73]
[1755957737426,4.9568,201.81,201.7,2.73]
[1755957738525,4.9568,201.81,201.73,4.9586]
[1755957738726,4.9568,201.81,201.74,2.73]
[1755957739630,2.8,201.79,201.71,4.9592]
[1755957740127,7.7575,201.79,201.7,2.73]
[1755957740328,7.7575,201.79,201.71,4.56470248]
[1755957740626,4.9582,201.76,201.68,4.9598]
[1755957740826,2.8,201.78,201.69,7.29508696]
[1755957741023,2.8,201.78,201.71,2.73]
[1755957741618,2.8,201.82,201.71,2.73]
[1755957741823,2.8,201.82,201.71,7.6891]
[1755957743431,2.8,201.82,201.73,2.73]
[1755957743628,102.0,201.81,201.73,2.73]
[1755957743935,2.8,201.82,201.76,2.73]
[1755957745039,130.0159,201.85,201.73,8.04338533]
[1755957745232,7.7559,201.85,201.74,7.29936232]
[1755957745428,2.8,201.88,201.79,4.9571]
[1755957745628,2.8,201.88,201.8,4.56745219]
[1755957745629,4.9555,201.87,201.8,4.56745219]
[1755957745932,2.8,201.88,201.79,4.9571]
[1755957746132,7.7558,201.86,201.78,2.73]
[1755957746332,7.7558,201.86,201.79,4.56965384]
[1755957746533,7.7558,201.86,201.8,4.56965384]
[1755957746732,7.7558,201.86,201.78,2.73]
[1755957746930,2.8,201.86,201.79,9.52456399]
[1755957747128,2.8,201.86,201.8,4.56746399]
[1755957747432,2.8,201.86,201.75,2.73]
[1755957747733,4.9562,201.84,201.77,4.9577]
[1755957747933,4.9562,201.84,201.78,4.56755926]
[1755957748234,2.8,201.83,201.79,4.56755926]
[1755957748429,2.8,201.83,201.77,4.9577]
[1755957748731,2.8,201.88,201.74,2.73]
[1755957748933,2.8,201.88,201.75,4.56789179]
[1755957749122,8.04338533,201.89,201.76,4.56789179]
[1755957749123,4.9567,201.82,201.76,4.56789179]
[1755957749325,4.9567,201.82,201.77,4.56789179]
[1755957749525,2.8,201.8,201.78,4.56789179]
[1755957749722,2.8,201.84,201.75,2.73]
[1755957749927,2.8,201.84,201.76,4.56877438]
[1755957750127,2.8,201.84,201.77,4.56877438]
[1755957750434,2.8,201.84,201.75,2.73]
[1755957750635,2.8,201.84,201.76,4.56966712]
[1755957750938,7.7567,201.82,201.78,2.73]
[1755957751530,4.9561,201.84,201.79,4.56991045]
[1755957751731,4.9561,201.84,201.8,7.29972394]
[1755957752030,7.7561,201.84,201.8,2.73]
[1755957752534,2.8,201.83,201.8,2.73]
[1755957753236,109.7557,201.86,201.8,2.73]
[1755957755038,109.7557,201.86,201.78,4.9573]
[1755957755240,109.7557,201.86,201.79,4.56937467]
[1755957755532,109.7557,201.86,201.8,4.56937467]
[1755957755732,109.7557,201.86,201.8,2.62]
[1755957755733,104.8,201.86,201.8,2.62]
[1755957756036,104.8,201.86,201.81,4.56959916]
[1755957756237,102.0,201.86,201.82,2.62]
[1755957756630,102.0,201.86,201.77,8.04338533]
[1755957756828,102.0,201.86,201.83,2.62]
[1755957757832,7.555,201.89,201.83,2.62]
[1755957757833,2.6,201.89,201.83,2.62]
[1755957758042,2.6,201.89,201.84,4.57642161]
[1755957758239,2.6,201.89,201.82,2.62]
[1755957758433,2.6,201.89,201.83,4.5758972]
[1755957758628,2.6,201.89,201.84,4.57589622]
[1755957758839,2.6,201.89,201.85,7.19586063]
[1755957759037,2.6,201.89,201.86,2.62]
[1755957759433,2.6,201.89,201.84,4.9559]
[1755957759638,2.6,201.9,201.82,7.5765]
[1755957759837,2.6,201.9,201.83,4.57547855]
[1755957760033,2.6,201.9,201.84,4.57547855]
[1755957760235,2.6,201.9,201.78,8.04338533]
[1755957760236,2.6,201.9,201.79,2.62]
[1755957760536,4.9557,201.86,201.8,4.57586138]
[1755957760737,7.5557,201.86,201.81,7.19586138]
[1755957760941,7.5557,201.86,201.82,4.57586138]
[1755957761238,2.6,201.85,201.83,4.57586138]
[1755957761434,2.6,201.85,201.81,2.62]
[1755957761631,2.6,201.85,201.82,4.57638936]
[1755957761936,2.6,201.85,201.82,2.62]
[1755957762137,2.6,201.85,201.83,4.57756082]
[1755957762445,2.6,201.85,201.82,2.62]
[1755957762937,2.6,201.85,201.74,122.18]
[1755957762938,2.6,201.85,201.77,2.62]
[1755957763140,2.6,201.85,201.78,4.57785919]
[1755957763339,2.6,201.85,201.79,4.57785919]
[1755957763535,2.6,201.85,201.73,2.62]
[1755957763740,2.6,201.85,201.75,2.62]
[1755957763937,2.6,201.85,201.76,4.57954362]
[1755957764140,2.6,201.85,201.77,7.19954362]
[1755957764335,2.6,201.85,201.78,4.57954362]
[1755957764533,7.556,201.85,201.79,4.57954362]
[1755957764732,2.6,201.84,201.8,4.57954362]
[1755957764936,2.6,201.84,201.77,2.62]
[1755957765142,2.6,201.84,201.78,4.58108394]
[1755957765443,4.9562,201.84,201.79,7.20108394]
[1755957765738,2.6,201.83,201.75,2.62]
[1755957765943,2.6,201.83,201.76,4.58143327]
[1755957766142,2.6,201.83,201.77,4.58143327]
[1755957766143,4.9567,201.82,201.77,4.58143327]
[1755957766442,2.6,201.81,201.75,2.62]
[1755957766643,2.6,201.81,201.76,7.20198923]
[1755957766843,2.6,201.81,201.77,4.58198923]
[1755957767147,2.6,201.81,201.78,4.58195175]
[1755957767438,2.6,201.81,201.78,2.62]
[1755957767633,7.5562,201.84,201.78,2.62]
[1755957768241,4.9564,201.83,201.78,2.62]
[1755957768443,2.6,201.82,201.78,2.62]
[1755957768638,2.6,201.82,201.76,4.9579]
[1755957768639,2.6,201.82,201.79,2.62]
[1755957769546,7.5564,201.83,201.76,4.9579]
[1755957769736,7.5564,201.83,201.77,4.58623106]
[1755957769937,7.5564,201.83,201.78,7.20623106]
[1755957770139,7.5564,201.83,201.78,2.62]
[1755957770342,2.6,201.82,201.78,2.62]
[1755957770538,7.5567,201.82,201.76,2.62]
[1755957770737,2.6,201.81,201.77,4.58718721]
[1755957770942,2.6,201.81,201.78,4.58718721]
[1755957771140,4.9567,201.82,201.77,2.62]
[1755957771340,2.6,201.81,201.78,4.58745796]
[1755957771541,2.6,201.81,201.75,2.62]
[1755957771741,2.6,201.81,201.76,7.20741918]
[1755957772039,104.6,201.87,201.78,2.62]
[1755957772239,2.6,201.91,201.8,2.62]
[1755957772445,2.6,201.91,201.81,4.5867421]
[1755957772644,2.6,201.91,201.82,4.5867421]
[1755957772941,24.7732,201.9,201.8,2.62]
[1755957773247,2.6,201.89,201.81,4.58667784]
[1755957773445,2.6,201.89,201.82,4.58667784]
[1755957773748,4.9553,201.88,201.8,2.62]
[1755957773941,4.9553,201.88,201.81,4.58660576]
[1755957774246,4.9553,201.88,201.82,4.58660576]
[1755957774446,4.9553,201.88,201.8,2.62]
[1755957774741,4.9553,201.88,201.81,4.58727138]
[1755957774945,4.9553,201.88,201.82,4.58727138]
[1755957775141,4.9553,201.88,201.8,2.62]
[1755957775447,2.6,201.88,201.75,2.62]
[1755957775746,2.6,201.86,201.77,2.62]
[1755957775947,2.6,201.86,201.78,4.58944497]
[1755957776143,2.6,201.86,201.79,4.58944497]
[1755957776345,2.6,201.86,201.77,2.62]
[1755957777652,2.6,201.86,201.72,108.36292768]
[1755957777653,24.7782,201.86,201.74,4.9585]
[1755957777946,2.6,201.85,201.75,8.64046684]
[1755957778149,2.6,201.85,201.76,4.59413375]
[1755957778348,2.6,201.85,201.74,4.9585]
[1755957778549,2.6,201.82,201.75,8.64318993]
[1755957778850,2.6,201.82,201.76,4.59548044]
[1755957779052,2.6,201.82,201.73,2.62]
[1755957779249,2.6,201.82,201.74,8.64344829]
[1755957779450,2.6,201.82,201.75,4.59548576]
[1755957779649,7.5568,201.82,201.76,4.59548576]
[1755957779847,7.5568,201.82,201.77,4.597794]
[1755957780048,2.6,201.81,201.75,2.62]
[1755957780249,32.81928533,201.88,201.72,75.52464235]
[1755957780250,7.5561,201.85,201.77,2.62]
[1755957780546,104.6,201.89,201.79,2.62]
[1755957780748,32.81918533,201.88,201.74,2.62]
[1755957780951,8.04338533,201.84,201.75,4.59917665]
[1755957781249,24.782,201.83,201.71,2.62]
[1755957781552,8.04338533,201.8,201.72,4.60042955]
[1755957781849,247.7233,201.91,201.73,4.60042955]
[1755957781850,2.6,201.84,201.73,4.60042955]
[1755957782054,2.6,201.83,201.73,7.22042955]
[1755957782347,4.9572,201.8,201.74,4.60042155]
[1755957782551,2.6,201.79,201.75,2.62]
[1755957783452,2.6,201.79,201.76,4.60063238]
[1755957783752,2.6,201.79,201.75,2.62]
[1755957784052,2.6,201.79,201.76,4.60024117]
[1755957784356,2.6,201.79,201.75,2.62]
[1755957784560,2.6,201.79,201.76,4.60008383]
[1755957784753,2.6,201.79,201.75,2.62]
[1755957784951,2.76,201.82,201.76,7.24008116]
[1755957785146,2.76,201.86,201.76,2.64]
[1755957785347,2.76,201.86,201.78,2.64]
[1755957785547,2.76,201.86,201.79,4.59962282]
[1755957785756,2.76,201.86,201.8,4.59962282]
[1755957785954,122.96,201.91,201.81,4.59962282]
[1755957786247,2.76,201.89,201.78,2.64]
[1755957786558,4.9556,201.86,201.79,4.60035463]
[1755957786750,4.9556,201.86,201.8,4.60035463]
[1755957786949,102.0,201.88,201.81,7.24035463]
[1755957787150,4.9556,201.86,201.82,4.60035463]
[1755957787447,2.76,201.9,201.77,2.64]
[1755957787647,2.76,201.9,201.78,4.63495616]
[1755957787848,2.76,201.88,201.79,4.63495616]
[1755957788148,2.76,201.88,201.8,4.63495616]
[1755957788451,2.76,201.88,201.77,2.64]
[1755957788652,4.9567,201.82,201.78,4.63605036]
[1755957788850,4.9567,201.82,201.79,4.63605036]
[1755957789047,7.7167,201.82,201.8,4.63605036]
[1755957789252,7.7167,201.82,201.78,2.64]
[1755957789453,7.7167,201.82,201.79,4.63639308]
[1755957789648,7.7167,201.82,201.8,4.63639308]
[1755957789945,2.76,201.81,201.73,2.64]
[1755957790147,2.76,201.81,201.74,8.68995229]
[1755957790344,2.76,201.81,201.75,4.6365925]
[1755957790541,2.76,201.81,201.76,4.6365925]
[1755957790746,2.76,201.81,201.69,2.64]
[1755957790946,2.76,201.81,201.7,8.69016452]
[1755957791246,2.76,201.81,201.71,8.69016452]
[1755957791442,4.958,201.77,201.72,8.69005293]
[1755957791642,2.76,201.8,201.73,4.63662368]
[1755957791850,2.76,201.8,201.74,4.63662368]
[1755957792041,2.76,201.8,201.69,2.64]
[1755957792246,2.76,201.77,201.7,4.63598896]
[1755957792546,2.76,201.77,201.66,2.64]
[1755957792547,2.76,201.77,201.71,4.63598896]
[1755957792743,2.76,201.77,201.66,2.64]
[1755957792744,2.76,201.75,201.66,2.64]
[1755957793352,2.76,201.73,201.62,2.64]
[1755957793561,2.76,201.73,201.63,4.04957978]
[1755957793852,2.76,201.73,201.62,2.64]
[1755957794049,10.80338533,201.73,201.62,2.64]
[1755957794244,4.9604,201.67,201.62,2.64]
[1755957794450,7.7204,201.67,201.62,2.64]
[1755957795045,4.9598,201.7,201.59,2.64]
[1755957795248,4.9598,201.7,201.61,2.64]
[1755957795646,2.76,201.71,201.61,2.64]
[1755957795853,4.959,201.72,201.63,2.64]
[1755957796054,7.719,201.72,201.63,2.64]
[1755957796256,2.76,201.72,201.64,6.74486983]
[1755957796454,2.76,201.72,201.64,2.64]
[1755957797761,2.76,201.73,201.64,2.64]
[1755957798556,4.96,201.69,201.64,2.64]
[1755957798753,2.76,201.68,201.64,2.64]
[1755957798949,24.7958,201.72,201.59,4.9622]
[1755957798950,2.76,201.71,201.6,2.64]
[1755957800157,4.9598,201.69,201.6,2.64]
[1755957800760,2.76,201.71,201.6,2.64]
[1755957801560,4.9602,201.68,201.6,2.64]
[1755957802155,102.0,201.7,201.61,6.73547624]
[1755957802360,102.0,201.7,201.63,2.64]
[1755957802556,2.76,201.74,201.63,2.64]
[1755957802760,2.76,201.74,201.64,2.64]
[1755957803157,4.9594,201.71,201.64,2.64]
[1755957803355,4.9594,201.71,201.57,41.74884023]
[1755957803356,2.76,201.7,201.6,2.64]
[1755957804759,2.76,201.7,201.62,2.64]
[1755957804960,7.7196,201.7,201.63,4.52330507]
[1755957805160,2.76,201.7,201.64,4.52330507]
[1755957805361,2.76,201.7,201.62,2.64]
[1755957805656,2.76,201.7,201.58,2.64]
[1755957805657,2.76,201.64,201.58,2.64]
[1755957805855,2.76,201.64,201.51,4.18294814]
[1755957805856,2.76,201.64,201.6,2.64]
[1755957806651,7.7212,201.64,201.6,2.64]
[1755957807257,7.7212,201.64,201.54,4.9633]
[1755957807258,7.7214,201.63,201.56,2.64]
[1755957807461,7.7214,201.63,201.57,8.61622193]
[1755957807657,7.7214,201.63,201.58,4.5222706]
[1755957807658,4.9614,201.63,201.58,4.5222706]
[1755957807858,2.76,201.61,201.56,2.64]
[1755957808050,2.76,201.6,201.57,4.52252332]
[1755957808255,2.76,201.6,201.58,4.52252332]
[1755957808453,2.76,201.62,201.53,2.64]
[1755957808654,2.76,201.62,201.54,8.61310254]
[1755957808855,2.76,201.62,201.55,4.5206008]
[1755957809063,2.76,201.62,201.56,4.5206008]
[1755957809262,24.8039,201.65,201.57,4.5206008]
[1755957809462,2.76,201.61,201.58,4.51886297]
[1755957809761,4.9621,201.6,201.53,2.64]
[1755957809965,4.9621,201.6,201.54,8.60978072]
[1755957810159,4.9621,201.6,201.5,122.86]
[1755957810160,4.9621,201.6,201.56,2.64]